Cogmind - Beta 16 @@@ ROGUE MODE // 2025.12.15 @ 17:48:57 Player: Parkagirl Result: Destroyed by S-10 Pest with Light Assault Rifle Performance ------------- Evolutions (1) 500 Regions Visited (2) 400 Robots Destroyed (9) 45 Value Destroyed (323) 323 Prototype IDs (2) 40 Alien Tech Used (0) 0 Bonus (200) 200 TOTAL SCORE: 1508 Bonus ------- Pacifist 200 Cogmind --------- Core Integrity 0/400 Matter 405/450 Energy 208/250 System Corruption 0% Temperature Cool (9) Movement Walking (190) Ox1 Location -9/Materials Parts ------- > --- POWER (1) -------- Ion Engine > --- PROPULSION (3) --- Aluminum Leg Aluminum Leg > --- UTILITY (3) ------ Large Storage Unit Large Matter Pod Visual Processing Unit > --- WEAPON (2) ------- Grenade Launcher > --- INVENTORY (15) --- Medium Storage Unit Large Storage Unit Visual Processing Unit Utility Shielding Utility Shielding Utility Shielding Utility Shielding Utility Shielding Utility Shielding Utility Shielding Peak State ------------ > --- POWER ------------ Light Ion Engine > --- PROPULSION ------- Improved Treads Improved Treads Improved Treads > --- UTILITY ---------- Large Storage Unit Large Matter Pod Visual Processing Unit > --- WEAPON ----------- Light Assault Rifle > --- INVENTORY -------- Ion Engine Aluminum Leg Aluminum Leg Medium Storage Unit Large Storage Unit Visual Processing Unit Utility Shielding Utility Shielding Utility Shielding Utility Shielding Utility Shielding Utility Shielding Utility Shielding [Rating: 13] Favorites ----------- Power Ion Engine Engine Ion Engine Propulsion Light Treads Treads Light Treads Leg Aluminum Leg Wheel Compact Wheel Utility Large Storage Unit Storage Large Storage Unit Processor Visual Processing Unit Protection Utility Shielding Weapon Light Assault Rifle Energy Gun EM Pulse Gun Ballistic Gun Light Assault Rifle Launcher Grenade Launcher Build | -11 -10 -9 ------- Run | Yrd Mat Mat Slots Evolved 2 | . . 2 Power . | . . . Propulsion 1 | . . 1 Utility 1 | . . 1 Weapon . | . . . Parts Attached 23 | 6 4 13 Power 3 | 1 . 2 Engine 3 | 1 . 2 Core . | . . . Reactor . | . . . Propulsion 9 | 2 . 7 Treads 5 | 2 . 3 Leg 2 | . . 2 Wheel 2 | . . 2 Hover . | . . . Flight . | . . . Utility 7 | 1 4 2 Device . | . . . Storage 5 | 1 4 . Processor 1 | . . 1 Hackware . | . . . Protection 1 | . . 1 Artifact . | . . . Weapon 4 | 2 . 2 Energy Gun 1 | 1 . . Energy Cannon . | . . . Ballistic Gun 2 | 1 . 1 Ballistic Cannon . | . . . Launcher 1 | . . 1 Special Weapon . | . . . Impact Weapon . | . . . Slashing Weapon . | . . . Piercing Weapon . | . . . Special Melee Weapon . | . . . Unidentified Prototypes . | . . . Parts Lost 10 | . . 10 Power 2 | . . 2 Propulsion 5 | . . 5 Utility . | . . . Weapon 3 | . . 3 Highest Loss Streak 3 | . . 3 To Critical Strikes . | . . . Average Backups 11 | 4 9 13 Power 1 | . 1 1 Propulsion 3 | 2 4 2 Utility 6 | . 3 8 Weapon . | . 1 . Tool/Special . | . . . Unused Backups 10 | . . 10 Power . | . . . Propulsion . | . . . Utility 10 | . . 10 Weapon . | . . . Tool/Special . | . . . Average Slot Usage (%) 79 | . 87 77 Engine 10 | . 14 9 Treads 22 | . 28 20 Wheel 1 | . . 1 Storage 20 | . 16 22 Processor 2 | . . 3 Protection 4 | . . 6 Energy Gun 5 | . 14 2 Ballistic Gun 10 | . 14 9 Peak Build Rating 13 | 6 8 13 Average Rating 8 | 4 6 9 On Entrance 4 | . 6 8 Avg Prop Armor Cover (%) . | . . . Naked Turns . | . . . Heaviest Build 32 | 13 31 32 Greatest Support 69 | 40 40 69 Greatest Overweight (x) 1 | . . 1 Average Overweight (x) . | . . . Largest Inventory Capacity 15 | 8 15 15 Average Capacity 13 | 7 12 15 Most Carried 15 | 6 12 15 Average Carried 11 | 4 9 13 Final Capacity 15 | 8 15 15 Final Carried 12 | 6 12 10 Class Distribution -------------------- 100% | Mutant Dominant Class ---------------- Mutant | -10/Materials Mutant | -9/Materials Resources | -11 -10 -9 ----------- Run | Yrd Mat Mat Matter Collected 604 | 223 . 381 Remotely . | . . . Salvage Created 339 | . . 339 Parts 14 | . . 14 Haulers Intercepted . | . . . Recyclers Shooed . | . . . Parts Field Recycled . | . . . Retrieved Matter . | . . . Parts Self-Destructed . | . . . Prevented . | . . . Parts Restored . | . . . Kills | -11 -10 -9 ------- Run | Yrd Mat Mat Combat Hostiles Destroyed 9 | . . 9 Guns 8 | . . 8 AOE 1 | . . 1 Classes Destroyed 3 | . . 3 Swarmer 2 | . . 2 Grunt 5 | . . 5 Sentry 2 | . . 2 Best Kill Streak 2 | . . 2 Combat Bots Only 2 | . . 2 Max Kills in Single Turn 1 | . . 1 Gunslinging . | . . . Exploded 1 | . . 1 Melee . | . . . Uniques/NPCs Destroyed . | . . . Combat | -11 -10 -9 -------- Run | Yrd Mat Mat Hostile Shots Fired 195 | . 5 190 Missed 55 | . 1 54 Hits 140 | . 4 136 Projectile 140 | . 4 136 Critical Strikes 4 | . . 4 Damage Taken 1779 | . 39 1740 Core 406 | . . 406 Absorbed by Shields . | . . . Redirected to Shielding 4 | . . 4 Core Remaining (%) 100 | 100 100 . Volleys Fired 78 | . . 78 Largest 2 | . . 2 Hottest 60 | . . 60 Shots Fired 92 | . . 92 Gun 91 | . . 91 Cannon . | . . . Launcher 1 | . . 1 Special . | . . . Kinetic 83 | . . 83 Thermal . | . . . Explosive 1 | . . 1 Electromagnetic 8 | . . 8 Robot Hit Streak 10 | . . 10 Robot Miss Streak 5 | . . 5 Penetration Max . | . . . Secondary Targets 1 | . . 1 Max Gunslinging Chain 1 | . . 1 Shots Hit Robots 59 | . . 59 Core Hits 25 | . . 25 Critical Kills . | . . . Critical Parts Destroyed . | . . . Critical Strikes . | . . . Melee Attacks . | . . . Impact . | . . . Slashing . | . . . Piercing . | . . . Sneak Attacks . | . . . Combat Hostiles . | . . . Follow-up Attacks . | . . . Damage Inflicted 911 | . . 911 Guns 570 | . . 570 Cannons . | . . . Explosions 338 | . . 338 Melee . | . . . Ramming 3 | . . 3 Kinetic 481 | . . 481 Thermal 256 | . . 256 Explosive 82 | . . 82 Electromagnetic 89 | . . 89 Impact . | . . . Slashing . | . . . Piercing . | . . . Highest Corruption . | . . . Average Corruption . | . . . Corruption Purged . | . . . Corruption Blocked . | . . . Overload Shots . | . . . Overflow Damage . | . . . Projectiles . | . . . Explosions . | . . . Melee . | . . . Knockbacks . | . . . Impact . | . . . Kinetic . | . . . Secondary . | . . . Self-Inflicted Damage 99 | . . 99 Shots 2 | . . 2 Rammed 1 | . . 1 Targets Rammed 1 | . . 1 Kicked . | . . . Crushed . | . . . Highest Temperature 46 | . . 46 Average Temperature 11 | . . 11 Received Heat Transfer 639 | . 12 627 Siege Activations . | . . . Martial Activations . | . . . Shielding Activations . | . . . Robots Disrupted . | . . . Combat Hostiles . | . . . Robots Corrupted . | . . . Combat Hostiles . | . . . Parts Fried . | . . . Impact Corruptions . | . . . Robots Melted . | . . . Combat Hostiles . | . . . Parts Melted . | . . . Heat Transferred 150 | . . 150 Parts Sabotaged . | . . . Parts Stolen . | . . . Parts Stripped . | . . . Power Chain Reactions 1 | . . 1 Alert | -11 -10 -9 ------- Run | Yrd Mat Mat Maximum Alert Level . | . . . Low Security (%) 100 | 100 100 100 Level 1 . | . . . Level 2 . | . . . Level 3 . | . . . Level 4 . | . . . Level 5 . | . . . High Security . | . . . Max Security . | . . . Peak Influence 153 | . 10 153 Initial . | . . . Average 41 | . . 62 Influence Increases 422 | . 15 407 Destroy 0b10 Robot/C 180 | . . 180 Destroy Leader 40 | . . 40 Successful Hack 15 | . 15 . Disable Machine 45 | . . 45 Destroy Structure 37 | . . 37 Lose Combat Pursuer 105 | . . 105 Influence Decreases 351 | . 15 336 Time Decay 263 | . 15 248 Lost Part 88 | . . 88 Squads Dispatched 2 | . . 2 Investigation 1 | . . 1 Extermination . | . . . Reinforcement 1 | . . 1 Assault . | . . . Garrison . | . . . Intercept . | . . . Searches Triggered . | . . . Construction Impeded . | . . . Haulers Reinforced . | . . . Active Scanning Responses . | . . . Cargo Convoy Interrupts . | . . . Stealth | -11 -10 -9 --------- Run | Yrd Mat Mat Distress Signals . | . . . Communications Jammed . | . . . Distress Signals . | . . . Times Spotted 32 | . 7 25 Peak Tracking Total 8 | . 7 8 Tactical Retreats 4 | . . 4 Traps | -11 -10 -9 ------- Run | Yrd Mat Mat Traps Triggered 1 | . . 1 Indirectly . | . . . Trap Hack Attempts . | . . . Triggered . | . . . Disarmed . | . . . Reprogrammed . | . . . Reused . | . . . Traps Extracted . | . . . Installed . | . . . Triggered . | . . . Machines | -11 -10 -9 ---------- Run | Yrd Mat Mat Machines Disabled 3 | . . 3 Max in Single Turn 3 | . . 3 Machines Repaired . | . . . Machines Dismantled . | . . . Machines Sabotaged . | . . . Overloaded Fab Kills . | . . . Hacking | -11 -10 -9 --------- Run | Yrd Mat Mat Machines Accessed 2 | . 2 . Terminals 2 | . 2 . Fabricators . | . . . Repair Stations . | . . . Recycling Units . | . . . Scanalyzers . | . . . Garrison Access . | . . . Total Hacks 6 | . 6 . Successful 6 | . 6 . Failed . | . . . Catastrophic . | . . . Database Lockouts . | . . . Manual . | . . . Terminals 6 | . 6 . Fabricators . | . . . Repair Stations . | . . . Recycling Units . | . . . Scanalyzers . | . . . Garrison Access . | . . . Terminal Hacks 6 | . 6 . Prototype ID Bank 1 | . 1 . Alert Level 1 | . 1 . Hauler Manifests 2 | . 2 . Zone Layout 2 | . 2 . Fabricator Hacks . | . . . Repair Station Hacks . | . . . Recycling Unit Hacks . | . . . Scanalyzer . | . . . Garrison Access Hacks . | . . . Unauthorized Hacks . | . . . Terminals . | . . . Fabricators . | . . . Repair Stations . | . . . Recycling Units . | . . . Scanalyzers . | . . . Garrison Access . | . . . Data Cores Recovered . | . . . Used . | . . . Hacking Detections 1 | . 1 . Full Trace Events . | . . . Feedback Events . | . . . Feedback Blocked . | . . . Robot Schematics Acquired . | . . . Robots Built . | . . . Authchips . | . . . Time . | . . . Total Robot Build Rating . | . . . Part Schematics Acquired . | . . . Parts Built . | . . . Authchips . | . . . Time . | . . . Total Part Build Rating . | . . . Part Studies Acquired . | . . . Parts Repaired . | . . . Time . | . . . Parts Recycled . | . . . Recycled Matter . | . . . Retrieved Matter . | . . . Retrieved Components . | . . . Parts Scanalyzed . | . . . Part Schematics Acquired . | . . . Parts Damaged . | . . . Bothacking | -11 -10 -9 ------------ Run | Yrd Mat Mat Used RIF Installer . | . . . Robots Hacked . | . . . Non-combat . | . . . Combat . | . . . Robot Hacks Applied . | . . . Relay Couplers Released . | . . . Fabnet Peak Effective % . | . . . Robots Rewired . | . . . Allies Hacked . | . . . Hacks Repelled . | . . . Allies | -11 -10 -9 -------- Run | Yrd Mat Mat Total Allies . | . . . Largest Group . | . . . Highest-Rated Group . | . . . Highest-Rated Ally . | . . . Total Orders . | . . . Ally Attacks . | . . . Total Damage . | . . . Kills . | . . . Allies Corrupted . | . . . Allies Melted . | . . . Intel | -11 -10 -9 ------- Run | Yrd Mat Mat Active Infowar (turns) 231 | . . 231 Optics 231 | . . 231 Robot Analysis Total . | . . . Derelict Logs Recovered . | . . . Drone Launches . | . . . Drone Recoveries . | . . . Exploration | -11 -10 -9 ------------- Run | Yrd Mat Mat Turns Passed 954 | 114 210 630 Spaces Moved 449 | 63 123 263 Core 1 | 1 . . Treads 435 | 62 123 250 Legs 8 | . . 8 Wheels 5 | . . 5 Hover . | . . . Flight . | . . . Fastest Speed 50 | 50 160 90 Average Speed 165 | 158 160 169 Slowest Speed 240 | 160 160 240 Overloaded Moves . | . . . Propulsion Burnouts . | . . . Robots Hopped . | . . . Potential Cave-ins . | . . . Cave-ins Triggered . | . . . Exploration Rate (%) 16 | 5 26 19 Regions Visited 2 Branch Regions . Pre-discovered Areas . | . . . Known Exits Taken . | . . . Unknown Exits Taken 2 | 1 1 . Scrap Searched . | . . . Spaces Dug . | . . . Terrain Destroyed 41 | . . 41 Melee . | . . . Projectile . | . . . AOE 41 | . . 41 Terrain Rammed . | . . . Walls Destroyed . | . . . Machines Disabled . | . . . Actions | -11 -10 -9 --------- Run | Yrd Mat Mat Total 578 | 74 134 370 Wait . | . . . Move 447 | 62 122 263 Hop . | . . . Pick Up 19 | 6 4 9 Fast Attach 14 | 6 3 5 Attach 7 | . . 7 Detach 1 | . 1 . Swap 4 | . 3 1 Drop 7 | . 1 6 Fire 78 | . . 78 Melee . | . . . Ram 1 | . . 1 Kick . | . . . Crush . | . . . Escape Stasis . | . . . Rewire . | . . . Trap . | . . . Miscellaneous . | . . . Route ------- -11/Scrapyard -10/Materials -9/Materials History --------- Turn | Location | Event 18 | -11/Scrapyard | Discovered new exit (range 15) 115 | -11/Scrapyard | Entered Materials 264 | -10/Materials | Discovered new exit (range 9) 319 | -10/Materials | Build established: Mutant 325 | -10/Materials | Entered another Materials area 325 | -9/Materials | Evolved 2 slots: Propulsion x1, Utility x1 683 | -9/Materials | Lost 3 parts (1p1n1w) 833 | -9/Materials | Core integrity fell below 50% 925 | -9/Materials | Core integrity fell below 20% 955 | -9/Materials | Destroyed by S-10 Pest with Light Assault Rifle Last Messages --------------- 00854_ R-06 Scavenger collects Lgt. Assault Rifle. 00856_ Critical hit (Burn: +37). 00857_ Y-45 Defender destroyed. 00866_ Lgt. Assault Rifle destroyed. 00869_ Imp. Treads destroyed. 00871_ Extracted 100 matter. 00872_ Critical hit (Burn: +37). 00895_ K-01 Serf collects debris. 00920_ Purification Channel disabled. 00924_ Lgt. Ion Engine destroyed. 00927_ Imp. Treads destroyed. 00931_ Triggered Alarm Trap. 00931_ An alarm sounds. 00931_ ALERT: Alarm triggered, dispatching investigation squad. 00944_ Critical hit (Burn: +37). 00944_ Imp. Treads destroyed. 00951_ Acquired Grenade Launcher. 00953_ S-10 Pest destroyed. Map ----- +----------------------------------------------------+ | ##########+#####+#??""" ""??# #???????????????? | | %%!### ## """ """?# #???????????????? | | !%[% # """ """ # #???????????????? | | % = + # #???????????????? | | * # # #???????????????? | | =%!# # #???????????????? | | ### #############+##########???????? | | ######## #?# !##??????? | | ???????# #?# !#??????? | | ???????# #?# !#??????? | | ???????# ################ !#??????? | | ??????? # #??????# !#??????? | | ?????? # " #??????# !##??????? | | ????? # """ ######## ############ | | ???? ###### "" # # | | ???####?????# """ + # | | ????????????# "" # % # | | ????????????# """ # ####### ####+###### ##### | | ????????????# "" # #?????# #?T ????# #???? | | ????????????# """ s###???# + ????# #???? | | ????????????# " #### ### """ ????# #???? | | ????????????# YYs ## #?# ?"" ????# #???? | | ????????????####### [ ! [ ## #?# """ "???# ##### | | ??????????????????## ## #?#? ???# | | ????????????????????# ## #???? ???# ! | | ????????????????????# !@ ## #?????? ???# | | ????????????????????# ]] ## #??????###### | | ????????????????????########?+?????### ## !! | | ?????????????????????????????????### """""# ! | | ?????????????????????????????????# # | | ?????????????????????????????????# # ! = | | ?????????????????????????????????# # | | ?????????????????????????????????# # | | ?????????????????????????????????# + | | ?????????????????????????????????# # | | ?????????????????????????????????# ###### | | ?????????????????????????????????# # ##?# | | ?????????????????????????????????# #??? | | ?????????????????????????????????##"""""""""#??? | | ??????????????????????????????????### " T ?? | | ????????????????????????????????????#### +? | | ???????????????????????????????????????# #? | | ???????????????????????????????????????#########?? | | ?????????????????????????????????????????????????? | | ?????????????????????????????????????????????????? | | ?????????????????????????????????????????????????? | | ?????????????????????????????????????????????????? | | ?????????????????????????????????????????????????? | | ?????????????????????????????????????????????????? | | ?????????????????????????????????????????????????? | +----------------------------------------------------+ Best States ------------- Heat Dissipation 28 Energy Generation 10 Energy Capacity 250 Matter Stores 450 Matter Capacity 450 Sight Range 18 Terrain Scan Density 10 Utility Shielding 33 Evasion (%) 40 Recoil Reduction 3 Item Schematics ----------------- None Robot Schematics ------------------ None Fabricated ------------ Nothing Repaired ---------- Nothing Studied --------- None Alien Tech Used ----------------- None Achievements -------------- None Challenges ------------ None Game ------ Seed VoltaicNeutrinoRay Manual? 0 Play Time 00:11:01 Cumulative 8.3 hours Start 2025.12.15 @ 03:41:45 End 2025.12.15 @ 17:48:57 Sessions 2 Manual Loads 0 Difficulty Rogue Special Mode None Game No. 17 Rogue 17 Adventurer 0 Explorer 0 Win Type - Total 0 Types 0/0/0/0/0/0/0/0/0/0 Lore% 9 Gallery% 12 Achievement% 13 Wizard Run 0 Options --------- Layout 1 ASCII 0 Keyboard 0 Movement Vi Keybinds 0 Fullscreen 1 Font 24/Tamsyn Map View 50x40 Zoom Use 6% Tactical HUD 1 Map Filters NONE Filters NONE Steam 1 RUN: a739303c-a727-4a45-bdd1-4d38f152173a